Cogmind - Beta 14 @@@ ROGUE MODE // 2025.01.18 @ 12:56:09 Player: SuperSwiss Result: Self-destructed Performance ------------- Evolutions (6) 3000 Regions Visited (13) 2600 Robots Destroyed (150) 750 Value Destroyed (5785) 5785 Prototype IDs (30) 600 Alien Tech Used (0) 0 Bonus (836) 836 TOTAL SCORE: 13571 Bonus ------- High Alert Combat Kills 479 Follower Combat Kills 196 Aligned with FarCom 300 Friendly Fire -139 Cogmind --------- Core Integrity 247/1150 Matter 99/300 Energy 1/100 System Corruption 1% Temperature Cool (32) Movement Core (1400) Ox27 Location -4/Factory Parts ------- > --- POWER (2) -------- (None) > --- PROPULSION (5) --- (None) > --- UTILITY (9) ------ Huge Storage Unit Core Analyzer Advanced Focal Shield > --- WEAPON (3) ------- (None) > --- INVENTORY (25) --- Neutrino Core Coolant Injector Energy Filter Advanced Transmission Jammer Recalibrator Improved Datajack Mining Laser Chainsword Peak State ------------ > --- POWER ------------ Neutrino Core Neutrino Core > --- PROPULSION ------- Heavy Siege Treads Compact Wheel Armored Huge Wheel > --- UTILITY ---------- Experimental Heat Sink Huge Storage Unit Energy Well Core Analyzer Core Analyzer Quantum Capacitor Hardened Medium Armor Plating Thermal Defense Suite > --- WEAPON ----------- YOLO Cannon Chainsword > --- INVENTORY -------- Neutrino Core Improved Heavy Treads Armored Huge Wheel Improved Cryofiber Web Coolant Injector Improved Targeting Computer Energy Filter Advanced Particle Charger Transmission Jammer Focal Shield Recalibrator Cooled Plasma Cannon Cooled Plasma Cannon Cooled Plasma Cannon Cooled Plasma Cannon Cooled Plasma Cannon Proton Missile Launcher Improved Proton Missile Launcher Rocket Launcher Rocket Launcher Rocket Launcher Improved Datajack Mining Laser [Rating: 114] Favorites ----------- Power Neutrino Core Engine Improved Deuterium Engine Power Core Neutrino Core Reactor Antimatter Reactor Propulsion Armored Huge Wheel Treads Medium Treads Wheel Armored Huge Wheel Utility Huge Storage Unit Device Improved Cooling System Storage Huge Storage Unit Processor Core Analyzer Hackware System Shield Protection Improved Medium Armor Plating Weapon Cooled Plasma Cannon Energy Gun EM Pulse Gun Energy Cannon Cooled Plasma Cannon Ballistic Gun Assault Rifle Launcher Rocket Launcher Special Weapon Mining Laser Slashing Weapon Chainsword Special Melee Weapon Improved Datajack Build | -11 -10 -10 -10 -9 -8 -7 -7 -7 -6 -6 -6 -5 -4 ------- Run | Yrd Mat Min Exi Min Mat Fac Low Low Fac Was Fac Fac Fac Slots Evolved 12 | . . . . . 4 2 . . 2 . . 2 2 Power 1 | . . . . . . . . . 1 . . . . Propulsion 3 | . . . . . 1 1 . . 1 . . . . Utility 7 | . . . . . 2 1 . . . . . 2 2 Weapon 1 | . . . . . 1 . . . . . . . . Parts Attached 201 | 7 12 7 1 12 16 42 6 . 25 6 2 25 40 Power 16 | 1 1 . . 2 2 3 1 . 1 3 . 2 . Engine 8 | 1 1 . . 2 1 2 1 . . . . . . Core 5 | . . . . . 1 1 . . 1 . . 2 . Reactor 3 | . . . . . . . . . . 3 . . . Propulsion 33 | 2 2 1 . 1 3 12 . . 4 1 . 1 6 Treads 17 | . . . . . 3 6 . . 2 1 . 1 4 Leg . | . . . . . . . . . . . . . . Wheel 16 | 2 2 1 . 1 . 6 . . 2 . . . 2 Hover . | . . . . . . . . . . . . . . Flight . | . . . . . . . . . . . . . . Utility 66 | 2 3 . . 3 6 14 2 . 9 2 . 9 16 Device 42 | 1 1 . . 3 4 9 1 . 7 2 . 3 11 Storage 6 | 1 2 . . . . 2 . . 1 . . . . Processor 3 | . . . . . . . . . . . . 2 1 Hackware 1 | . . . . . . . . . . . . . 1 Protection 14 | . . . . . 2 3 1 . 1 . . 4 3 Artifact . | . . . . . . . . . . . . . . Weapon 86 | 2 6 6 1 6 5 13 3 . 11 . 2 13 18 Energy Gun 6 | 1 2 3 . . . . . . . . . . . Energy Cannon 45 | . 2 1 1 4 4 8 2 . 7 . 1 8 7 Ballistic Gun 1 | 1 . . . . . . . . . . . . . Ballistic Cannon . | . . . . . . . . . . . . . . Launcher 18 | . 2 2 . 2 . 1 1 . 2 . . 3 5 Special Weapon 1 | . . . . . 1 . . . . . . . . Impact Weapon . | . . . . . . . . . . . . . . Slashing Weapon 12 | . . . . . . 4 . . 2 . 1 1 4 Piercing Weapon . | . . . . . . . . . . . . . . Special Melee Weapon 3 | . . . . . . . . . . . . 1 2 Unidentified Prototypes 7 | . . . . . 2 1 . . 1 . . 1 2 Corrupted Parts 5 | . 1 . . . 4 . . . . . . . . System Corruption 11 | . 1 . . . 10 . . . . . . . . Parts Lost 41 | . 2 3 . 2 3 . 1 . 3 . . 2 25 Power 5 | . . . . 1 . . 1 . 1 . . . 2 Propulsion 9 | . 1 1 . 1 . . . . 1 . . . 5 Utility 14 | . 1 . . . 2 . . . 1 . . 2 8 Weapon 13 | . . 2 . . 1 . . . . . . . 10 Highest Loss Streak 19 | . 1 2 . 2 3 . 1 . 2 . . 1 19 To Critical Strikes 1 | . . . . . . . . . . . . . 1 Average Slot Usage (%) 89 | . 97 99 81 94 94 94 91 92 81 86 86 87 82 Engine 4 | . 14 14 14 14 5 2 6 7 6 7 . . . Core 3 | . . . . . 3 4 . . . . . 3 9 Reactor 1 | . . . . . . . . . . 4 13 7 . Treads 8 | . . . . . 8 18 15 15 3 6 6 4 4 Wheel 12 | . 27 27 28 28 18 6 7 7 18 13 13 11 9 Device 13 | . 11 14 14 14 11 14 14 15 13 13 13 9 10 Storage 12 | . 14 14 14 14 9 13 15 15 13 13 13 11 10 Processor 2 | . . . . . . . . . . . . 7 9 Protection 7 | . . . . . 13 8 7 7 6 6 6 10 10 Energy Gun 2 | . 24 19 2 . . . . . . . . . . Energy Cannon 16 | . 1 7 7 21 22 20 22 23 19 20 19 16 8 Slashing Weapon 1 | . . . . . . 1 . . . . . . 3 Peak Build Rating 114 | 7 10 11 28 29 36 58 57 56 72 85 85 94 114 Average Rating 58 | 4 8 9 16 19 22 48 55 56 65 80 84 90 104 On Entrance 42 | . 7 9 11 28 15 23 57 56 56 67 85 85 89 Naked Turns . | . . . . . . . . . . . . . . Heaviest Build 174 | 13 90 32 44 44 49 122 132 123 150 167 167 174 164 Greatest Support 75 | 26 26 20 20 20 60 60 28 28 72 44 44 75 44 Greatest Overweight (x) 6 | . 3 1 2 3 2 6 4 4 3 3 3 3 6 Average Overweight (x) 2 | . 1 1 1 1 1 3 4 4 1 3 3 2 3 Largest Inventory Capacity 25 | 8 25 15 15 15 15 25 25 25 25 25 25 25 25 Average Capacity 21 | 7 15 15 15 15 15 18 25 25 25 25 25 25 25 Most Carried 25 | 5 15 15 15 15 14 25 23 23 25 25 25 25 25 Average Carried 19 | . 10 13 15 14 13 16 21 23 23 24 25 23 23 Final Capacity 25 | 8 15 15 15 15 15 25 25 25 25 25 25 25 25 Final Carried 25 | . 15 15 15 14 14 23 23 23 23 25 25 23 8 Class Distribution -------------------- 35% | Mutant 31% | Skirmisher 12% | Tank 6% | Scavenger-Tank 5% | Gunner 4% | Scavenger-Gunner Dominant Class ---------------- Mutant | -10/Materials Mutant | -10/Mines Mutant | -10/Exiles Mutant | -9/Mines Tank | -8/Materials Skirmisher | -7/Factory Tank | -7/Lower Caves Tank | -7/Lower Caves Skirmisher | -6/Factory Skirmisher | -6/Waste Skirmisher | -6/Factory Scavenger-Gunner | -5/Factory Mutant | -4/Factory Resources | -11 -10 -10 -10 -9 -8 -7 -7 -7 -6 -6 -6 -5 -4 ----------- Run | Yrd Mat Min Exi Min Mat Fac Low Low Fac Was Fac Fac Fac Matter Collected 2310 | 215 209 80 . 87 312 455 95 . 237 57 53 331 179 Remotely . | . . . . . . . . . . . . . . Salvage Created 6673 | 17 464 143 . 162 422 1144 206 . 584 337 178 1392 1624 Parts 316 | 3 38 12 . 15 22 58 10 . 30 1 2 54 71 Haulers Intercepted 7 | . 2 . . . . . . . 1 . 1 2 1 Recyclers Shooed 2 | . . . . 1 . . . . . . . 1 . Parts Field Recycled . | . . . . . . . . . . . . . . Retrieved Matter . | . . . . . . . . . . . . . . Parts Self-Destructed 6 | . . . . . . . 6 . . . . . . Prevented . | . . . . . . . . . . . . . . Kills | -11 -10 -10 -10 -9 -8 -7 -7 -7 -6 -6 -6 -5 -4 ------- Run | Yrd Mat Min Exi Min Mat Fac Low Low Fac Was Fac Fac Fac Combat Hostiles Destroyed 116 | . 11 8 . 9 8 20 5 . 10 1 1 21 22 Guns 7 | . 5 2 . . . . . . . . . . . Cannons 54 | . 1 . . 1 5 19 . . 6 1 1 9 11 AOE 46 | . 5 5 . 8 1 . 4 . 3 . . 11 9 Classes Destroyed 18 | 1 5 . . 1 2 4 1 . . 1 . 1 2 Worker 6 | . . . . . . 1 . . . . . 1 4 Builder 11 | . 3 . . 1 . 1 . . 2 . . 3 1 Tunneler 2 | 1 1 . . . . . . . . . . . . Hauler 7 | . 2 . . . . . . . 1 . 1 2 1 Recycler 2 | . . . . . . . . . . . . 1 1 Carrier 1 | . . . . . . . . . . . . . 1 Mechanic 1 | . . . . . . . . . . . . . 1 Operator 3 | . 1 . . . . . . . . . . . 2 Swarmer 36 | . 6 6 . 4 . . 4 . 4 . . 9 3 Grunt 38 | . 5 2 . 4 4 8 . . . . . 7 8 Brawler 3 | . . . . 1 . . . . . . . 1 1 Duelist 1 | . . . . . 1 . . . . . . . . Protector 1 | . . . . . . 1 . . . . . . . Sentry 14 | . . . . . 3 4 . . 2 . 1 2 2 Hunter 7 | . . . . . . 1 . . 2 . . . 4 Programmer 14 | . . . . . . 6 . . 2 . . 2 4 Behemoth 1 | . . . . . . . 1 . . . . . . Compactor 1 | . . . . . . . . . . 1 . . . Wasp 1 | . . . . . . . . . . . 1 . . Best Kill Streak 10 | 1 7 3 . 10 3 4 4 . 4 1 2 8 10 Combat Bots Only 9 | . 5 3 . 9 3 3 4 . 4 1 1 7 7 Max Kills in Single Turn 5 | 1 2 2 . 5 2 2 4 . 3 1 1 3 5 Gunslinging . | . . . . . . . . . . . . . . Exploded 5 | . 2 2 . 5 1 . 4 . 3 . . 2 3 Melee . | . . . . . . . . . . . . . . Uniques/NPCs Destroyed . | . . . . . . . . . . . . . . Combat | -11 -10 -10 -10 -9 -8 -7 -7 -7 -6 -6 -6 -5 -4 -------- Run | Yrd Mat Min Exi Min Mat Fac Low Low Fac Was Fac Fac Fac Hostile Shots Fired 662 | . 26 39 . 28 29 111 9 . 82 . 57 65 216 Missed 216 | . 6 13 . 10 6 42 4 . 38 . 25 19 53 Damage Taken 7579 | . 222 296 . 239 420 949 185 . 598 . 278 808 3584 Core 810 | . 18 53 . 53 75 82 33 . 35 . 61 54 346 Absorbed by Shields . | . . . . . . . . . . . . . . Reduced by Siege Mode 492 | . . . . . . . . . . . . 25 467 Ignored by Resistances 251 | . . . . . . . . . 117 . 36 72 26 Regen/Repaired (Parts) 1255 | . . . . . . 22 . . 58 203 87 479 406 Core Remaining (%) 83 | 100 . . . 50 86 . . 83 . . 88 94 . Volleys Fired 250 | 1 26 12 . 7 20 87 4 . 20 1 6 26 40 Largest 3 | 2 2 2 . 2 3 3 3 . 3 3 3 3 3 Hottest 225 | 60 96 96 . 112 180 210 225 . 105 105 105 113 113 Shots Fired 527 | 2 51 24 . 14 38 175 10 . 60 3 18 59 73 Gun 57 | 2 42 13 . . . . . . . . . . . Cannon 420 | . 5 6 . 6 33 169 9 . 58 3 18 47 66 Launcher 45 | . 4 5 . 8 . 6 1 . 2 . . 12 7 Special 5 | . . . . . 5 . . . . . . . . Kinetic 1 | 1 . . . . . . . . . . . . . Thermal 382 | . . . . . 12 169 9 . 58 3 18 47 66 Explosive 27 | . 4 5 . 8 . . . . 2 . . 6 2 Electromagnetic 117 | 1 47 19 . 6 26 6 1 . . . . 6 5 Robot Hit Streak 26 | 2 6 2 . 3 10 26 1 . 9 8 15 6 16 Robot Miss Streak 5 | . 4 3 . 2 1 5 4 . 5 . 2 3 2 Penetration Max . | . . . . . . . . . . . . . . Secondary Targets . | . . . . . . . . . . . . . . Capacitor 16 | . . . . . . . . . . . . . 16 Shots Hit Robots 301 | 2 28 10 . 6 27 87 2 . 39 1 14 33 52 Core Hits 227 | 1 28 8 . 16 11 42 6 . 17 1 4 41 52 Critical Kills 4 | . . . . . . . 1 . . . . 1 2 Critical Parts Destroyed . | . . . . . . . . . . . . . . Critical Strikes 5 | . . . . . 1 . 1 . . . . 1 2 Meltdown 4 | . . . . . . . 1 . . . . 1 2 Corrupt 1 | . . . . . 1 . . . . . . . . Melee Attacks 45 | . . . . . . 13 . . 3 . 1 5 23 Impact . | . . . . . . . . . . . . . . Slashing 40 | . . . . . . 13 . . 3 . 1 2 21 Piercing . | . . . . . . . . . . . . . . Sneak Attacks 7 | . . . . . . . . . . . 1 5 1 Combat Hostiles . | . . . . . . . . . . . . . . Follow-up Attacks . | . . . . . . . . . . . . . . Damage Inflicted 15386 | 23 1017 428 . 738 888 2501 257 . 1595 37 623 2284 4995 Guns 457 | 23 340 94 . . . . . . . . . . . Cannons 8639 | . 119 40 . 98 758 2165 82 . 1473 37 539 1171 2157 Explosions 5958 | . 558 294 . 640 130 336 175 . 122 . . 965 2738 Melee 332 | . . . . . . . . . . . 84 148 100 Ramming . | . . . . . . . . . . . . . . Kinetic 11 | 11 . . . . . . . . . . . . . Thermal 10647 | . 180 94 . 48 414 2165 191 . 1473 37 539 1171 4335 Explosive 1968 | . 378 200 . 592 . . . . 122 . . 545 131 Electromagnetic 2428 | 12 459 134 . 98 474 336 66 . . . . 420 429 Impact . | . . . . . . . . . . . . . . Slashing 332 | . . . . . . . . . . . 84 148 100 Piercing . | . . . . . . . . . . . . . . Highest Corruption 10 | . 3 3 3 3 10 . 1 1 . . . 3 1 Average Corruption 2 | . 2 3 3 3 5 . 1 1 . . . 2 1 Corruption Purged . | . . . . . . . . . . . . . . Corruption Blocked . | . . . . . . . . . . . . . . Effects 53 | . 9 7 4 2 11 . 6 3 . . . 8 3 Message Errors 12 | . 3 . 1 1 4 . 1 . . . . 2 . Matter Fused 10 | . 2 2 . . 1 . 2 1 . . . 2 . Heat Flow Errors 7 | . 1 1 . . 1 . . 2 . . . 1 1 Energy Discharges 4 | . . 1 1 . 1 . . . . . . 1 . Parts Rejected 1 | . . . . . . . . . . . . . 1 Data Loss (minor) 11 | . 2 2 1 . 2 . 3 . . . . . 1 Data Loss (major) 5 | . 1 1 1 1 1 . . . . . . . . Alerts 3 | . . . . . 1 . . . . . . 2 . Overload Shots . | . . . . . . . . . . . . . . Overflow Damage 506 | . 18 . . 18 . 55 . . 61 . . 13 341 Projectiles 181 | . . . . . . 55 . . 61 . . . 65 Explosions 325 | . 18 . . 18 . . . . . . . 13 276 Melee . | . . . . . . . . . . . . . . Knockbacks . | . . . . . . . . . . . . . . Impact . | . . . . . . . . . . . . . . Kinetic . | . . . . . . . . . . . . . . Secondary . | . . . . . . . . . . . . . . Self-Inflicted Damage 868 | . 27 33 . 62 59 43 95 . 169 . . 41 339 Shots 21 | . 1 1 . 2 1 3 2 . 2 . . 1 8 Rammed . | . . . . . . . . . . . . . . Targets Rammed . | . . . . . . . . . . . . . . Kicked . | . . . . . . . . . . . . . . Crushed . | . . . . . . . . . . . . . . Highest Temperature 326 | . 212 252 . 7 249 326 84 239 90 . 16 179 173 Average Temperature 67 | . 44 88 . 3 70 85 31 111 38 . 8 110 50 Received Heat Transfer 1907 | . 51 90 . 84 207 315 12 . 60 . 84 180 824 Siege Activations 11 | . . . . . . . . . . 1 1 3 6 Total Turns 219 | . . . . . . . . . . 1 54 64 100 Longest Duration 54 | . . . . . . . . . . 1 54 32 31 Robots Corrupted 3 | . . 1 . . 2 . . . . . . . . Combat Hostiles 3 | . . 1 . . 2 . . . . . . . . Parts Fried 11 | . 2 . . . 6 3 . . . . . . . Impact Corruptions . | . . . . . . . . . . . . . . Robots Melted 6 | . . . . . . 1 1 . 1 . . 1 2 Combat Hostiles 6 | . . . . . . 1 1 . 1 . . 1 2 Parts Melted 41 | . . . . . 1 11 2 . 6 . 5 5 11 Heat Transferred 12653 | . 200 50 . 50 394 2982 187 . 2000 50 700 1550 4490 Parts Sabotaged 2 | . . . . . . . . . . . . . 2 Parts Stolen 1 | . . . . . . . 1 . . . . . . Parts Stripped . | . . . . . . . . . . . . . . Power Chain Reactions 6 | . 3 1 . 1 . . 1 . . . . . . Alert | -11 -10 -10 -10 -9 -8 -7 -7 -7 -6 -6 -6 -5 -4 ------- Run | Yrd Mat Min Exi Min Mat Fac Low Low Fac Was Fac Fac Fac Peak Influence 1011 | 5 267 301 . 267 370 564 . . 277 64 230 519 1011 Initial 204 | . 3 51 . . 104 100 . . 133 64 . 38 204 Average 234 | 1 107 174 . 86 271 271 . . 121 53 60 401 333 Maximum Alert Level 3 | . 1 1 . 1 1 2 . . 1 . 1 2 3 Low Security (%) 52 | 100 86 83 . 69 13 50 . . 90 100 91 8 17 Level 1 20 | . 13 16 . 30 86 3 . . 9 . 8 34 44 Level 2 26 | . . . . . . 45 . . . . . 57 35 Level 3 . | . . . . . . . . . . . . . 2 Level 4 . | . . . . . . . . . . . . . . Level 5 . | . . . . . . . . . . . . . . High Security . | . . . . . . . . . . . . . . Max Security . | . . . . . . . . . . . . . . Squads Dispatched 31 | . 2 . . 1 . 12 . . 7 . 2 2 5 Investigation 3 | . 1 . . . . . . . 1 . 1 . . Extermination 11 | . . . . . . 6 . . 2 . 1 1 1 Reinforcement 9 | . 1 . . 1 . 2 . . 1 . . 1 3 Assault 2 | . . . . . . 1 . . . . . . 1 Garrison 6 | . . . . . . 3 . . 3 . . . . Intercept . | . . . . . . . . . . . . . . Searches Triggered . | . . . . . . . . . . . . . . Construction Impeded 3 | . . . . 1 . . . . . . . 1 1 Haulers Reinforced 1 | . . . . . . . . . . . . . 1 Active Scanning Responses . | . . . . . . . . . . . . . . Cargo Convoy Interrupts . | . . . . . . . . . . . . . . Stealth | -11 -10 -10 -10 -9 -8 -7 -7 -7 -6 -6 -6 -5 -4 --------- Run | Yrd Mat Min Exi Min Mat Fac Low Low Fac Was Fac Fac Fac Distress Signals 7 | . 2 . . . 1 1 . . . . . 3 . Communications Jammed 46 | . . . . . . 44 . . 2 . . . . Distress Signals 46 | . . . . . . 44 . . 2 . . . . Times Spotted 165 | . 20 8 . 9 12 34 6 . 11 . 5 26 34 Peak Tracking Total 11 | . 7 3 . 7 3 5 4 . 3 . 2 7 11 Tactical Retreats 4 | . 1 . . . 1 . . . . . . 2 . Traps | -11 -10 -10 -10 -9 -8 -7 -7 -7 -6 -6 -6 -5 -4 ------- Run | Yrd Mat Min Exi Min Mat Fac Low Low Fac Was Fac Fac Fac Traps Triggered 6 | . 1 . . . . 1 . . 2 . . 2 . Indirectly . | . . . . . . . . . . . . . . Trap Hack Attempts . | . . . . . . . . . . . . . . Triggered . | . . . . . . . . . . . . . . Disarmed . | . . . . . . . . . . . . . . Reprogrammed . | . . . . . . . . . . . . . . Reused . | . . . . . . . . . . . . . . Traps Extracted . | . . . . . . . . . . . . . . Installed . | . . . . . . . . . . . . . . Triggered 2 | . . . . . . 1 1 . . . . . . Machines | -11 -10 -10 -10 -9 -8 -7 -7 -7 -6 -6 -6 -5 -4 ---------- Run | Yrd Mat Min Exi Min Mat Fac Low Low Fac Was Fac Fac Fac Machines Disabled 42 | . 3 3 . 1 1 10 . . 5 . . 2 17 Max in Single Turn 8 | . 2 2 . 1 1 2 . . 5 . . 1 8 Garrison Access 5 | . . . . . . 2 . . . . . . 3 Machines Repaired . | . . . . . . . . . . . . . . Machines Dismantled . | . . . . . . . . . . . . . . Machines Sabotaged . | . . . . . . . . . . . . . . Overloaded Fab Kills . | . . . . . . . . . . . . . . Hacking | -11 -10 -10 -10 -9 -8 -7 -7 -7 -6 -6 -6 -5 -4 --------- Run | Yrd Mat Min Exi Min Mat Fac Low Low Fac Was Fac Fac Fac Machines Accessed 54 | . 8 . 2 1 1 11 . . 7 . 2 6 16 Terminals 27 | . 5 . . 1 . 6 . . 4 . 1 3 7 Fabricators 2 | . . . . . . . . . . . . 1 1 Repair Stations 7 | . 1 . . . . 1 . . 1 . . 1 3 Recycling Units 6 | . 2 . . . . 2 . . . . 1 . 1 Scanalyzers 4 | . . . . . 1 . . . 1 . . 1 1 Garrison Access 6 | . . . . . . 2 . . 1 . . . 3 Total Hacks 131 | . 12 . 24 3 3 17 . . 18 . 4 12 38 Successful 81 | . 7 . 24 1 3 11 . . 9 . 2 6 18 Failed 50 | . 5 . . 2 . 6 . . 9 . 2 6 20 Catastrophic 7 | . 1 . . . . 1 . . 1 . . . 4 Database Lockouts . | . . . . . . . . . . . . . . Manual 36 | . 5 . 1 . . 6 . . 6 . 3 6 9 Terminals 60 | . 8 . . 3 . 10 . . 11 . 3 6 19 Fabricators 4 | . . . . . . . . . . . . 2 2 Repair Stations 13 | . 2 . . . . 2 . . 2 . . 2 5 Recycling Units 7 | . 2 . . . . 2 . . . . 1 . 2 Scanalyzers 12 | . . . . . 3 . . . 3 . . 2 4 Garrison Access 11 | . . . . . . 3 . . 2 . . . 6 Terminal Hacks 36 | . 1 . 24 1 . 3 . . 3 . . . 4 Record 24 | . . . 23 . . . . . . . . . 1 Dispatch Records 2 | . . . . . . . . . 1 . . . 1 Maintenance Status 1 | . . . . . . . . . . . . . 1 Patrol Status 1 | . . . . . . . . . . . . . 1 Investigation Status 1 | . . . . . . . . . 1 . . . . Hauler Manifests 2 | . . . . . . 1 . . 1 . . . . Zone Layout 4 | . 1 . . 1 . 2 . . . . . . . Derelict Proto ID Bank 1 | . . . 1 . . . . . . . . . . Fabricator Hacks 1 | . . . . . . . . . . . . 1 . Build 1 | . . . . . . . . . . . . 1 . Repair Station Hacks 9 | . . . . . . 2 . . 2 . . 2 3 Scan Component 5 | . . . . . . 1 . . 1 . . 1 2 Repair 4 | . . . . . . 1 . . 1 . . 1 1 Recycling Unit Hacks 7 | . 2 . . . . 2 . . . . 1 . 2 Report Inventory 6 | . 2 . . . . 2 . . . . 1 . 1 Retrieve Components 1 | . . . . . . . . . . . . . 1 Scanalyzer 7 | . . . . . 3 . . . 1 . . 1 2 Insert Component 5 | . . . . . 2 . . . 1 . . 1 1 Analyze 2 | . . . . . 1 . . . . . . . 1 Garrison Access Hacks 5 | . . . . . . 2 . . . . . . 3 Seal Access 5 | . . . . . . 2 . . . . . . 3 Unauthorized Hacks 16 | . 4 . . . . 2 . . 3 . 1 2 4 Terminals 16 | . 4 . . . . 2 . . 3 . 1 2 4 Botnet 16 | . 4 . . . . 2 . . 3 . 1 2 4 Fabricators . | . . . . . . . . . . . . . . Repair Stations . | . . . . . . . . . . . . . . Recycling Units . | . . . . . . . . . . . . . . Scanalyzers . | . . . . . . . . . . . . . . Garrison Access . | . . . . . . . . . . . . . . Data Cores Recovered 3 | . 1 . . . . . . . . . . . 2 Used 2 | . . . . . . . . . . . . . 2 Hacking Detections 31 | . 2 . . 1 . 5 . . 5 . 1 5 12 Full Trace Events 2 | . . . . . . . . . 1 . 1 . . Feedback Events . | . . . . . . . . . . . . . . Feedback Blocked . | . . . . . . . . . . . . . . Robot Schematics Acquired . | . . . . . . . . . . . . . . Robots Built 2 | . . . . . . . . . . . . 2 . Authchips . | . . . . . . . . . . . . . . Time 81 | . . . . . . . . . . . . 81 . Total Robot Build Rating 2 | . . . . . . . . . . . . 2 . Part Schematics Acquired 2 | . . . . . 1 . . . . . . . 1 Parts Built . | . . . . . . . . . . . . . . Authchips . | . . . . . . . . . . . . . . Time . | . . . . . . . . . . . . . . Total Part Build Rating . | . . . . . . . . . . . . . . Parts Repaired 4 | . . . . . . 1 . . 1 . . 1 1 Time 194 | . . . . . . 26 . . 44 . . 62 62 Parts Recycled . | . . . . . . . . . . . . . . Recycled Matter . | . . . . . . . . . . . . . . Retrieved Matter . | . . . . . . . . . . . . . . Retrieved Components 3 | . . . . . . . . . . . . . 3 Parts Scanalyzed 3 | . . . . . 1 . . . 1 . . . 1 Part Schematics Acquired 2 | . . . . . 1 . . . . . . . 1 Parts Damaged 1 | . . . . . . . . . 1 . . . . Bothacking | -11 -10 -10 -10 -9 -8 -7 -7 -7 -6 -6 -6 -5 -4 ------------ Run | Yrd Mat Min Exi Min Mat Fac Low Low Fac Was Fac Fac Fac Used RIF Installer . | . . . . . . . . . . . . . . Robots Hacked 3 | . . . . . . . . . . . . 1 2 Non-combat 3 | . . . . . . . . . . . . 1 2 Combat . | . . . . . . . . . . . . . . Robot Hacks Applied 5 | . . . . . . . . . . . . 3 2 parse_system 2 | . . . . . . . . . . . . 1 1 no_distress 1 | . . . . . . . . . . . . 1 . find_station 1 | . . . . . . . . . . . . 1 . check_alert 1 | . . . . . . . . . . . . . 1 Relay Couplers Released . | . . . . . . . . . . . . . . Fabnet Peak Effective % . | . . . . . . . . . . . . . . Robots Rewired . | . . . . . . . . . . . . . . Allies Hacked . | . . . . . . . . . . . . . . Hacks Repelled . | . . . . . . . . . . . . . . Allies | -11 -10 -10 -10 -9 -8 -7 -7 -7 -6 -6 -6 -5 -4 -------- Run | Yrd Mat Min Exi Min Mat Fac Low Low Fac Was Fac Fac Fac Total Allies 23 | . . 1 . . . . . . . 20 . 2 . Largest Group 20 | . . 1 1 . . . . . . 20 19 2 1 Highest-Rated Group 714 | . . 31 31 . . . . . . 714 687 43 10 Highest-Rated Ally 46 | . . 31 31 . . . . . . 46 46 23 10 Total Orders 1 | . . . . . . . . . . . . . 1 PICKUP 1 | . . . . . . . . . . . . . 1 Ally Attacks 35 | . . . . . . . . . . 3 27 5 . Total Damage 526 | . . . . . . . . . . 37 447 42 . Kills 7 | . . . . . . . . . . . 7 . . Allies Corrupted . | . . . . . . . . . . . . . . Allies Melted 1 | . . . . . . . . . . . 1 . . Intel | -11 -10 -10 -10 -9 -8 -7 -7 -7 -6 -6 -6 -5 -4 ------- Run | Yrd Mat Min Exi Min Mat Fac Low Low Fac Was Fac Fac Fac Robot Analysis Total . | . . . . . . . . . . . . . . Derelict Logs Recovered 3 | . . 1 . . . . 1 1 . . . . . Drone Launches . | . . . . . . . . . . . . . . Drone Recoveries . | . . . . . . . . . . . . . . Exploration | -11 -10 -10 -10 -9 -8 -7 -7 -7 -6 -6 -6 -5 -4 ------------- Run | Yrd Mat Min Exi Min Mat Fac Low Low Fac Was Fac Fac Fac Turns Passed 11927 | 51 882 429 271 167 588 3518 589 388 1287 478 480 968 1831 Spaces Moved 7360 | 44 760 402 263 56 393 1979 353 242 832 313 249 476 998 Core 12 | 12 . . . . . . . . . . . . . Treads 102 | . . . . . 2 99 . . . . . 1 . Legs . | . . . . . . . . . . . . . . Wheels 7246 | 32 760 402 263 56 391 1880 353 242 832 313 249 475 998 Hover . | . . . . . . . . . . . . . . Flight . | . . . . . . . . . . . . . . Fastest Speed 50 | 50 90 95 95 95 95 130 160 160 115 145 145 130 145 Average Speed 133 | 79 97 95 100 97 107 152 160 160 124 145 145 145 145 Slowest Speed 320 | 90 135 95 110 125 240 240 160 160 145 145 145 320 190 Overloaded Moves . | . . . . . . . . . . . . . . Propulsion Burnouts . | . . . . . . . . . . . . . . Robots Hopped . | . . . . . . . . . . . . . . Cave-ins Triggered . | . . . . . . . . . . . . . . Exploration Rate (%) 46 | 3 96 72 70 19 36 58 59 52 29 96 9 19 30 Regions Visited 13 Branch Regions 5 Pre-discovered Areas 1 | . . . 1 . . . . . . . . . . Known Exits Taken 1 | . . . . . 1 . . . . . . . . Unknown Exits Taken 10 | 1 1 1 1 1 . 1 1 1 . . 1 1 . Scrap Searched 7 | . . . . . . . 5 2 . . . . . Spaces Dug 65 | . . . . . 5 38 . . 3 . . . 19 Terrain Destroyed 736 | . 42 56 . 59 54 84 6 . 104 1 4 30 296 Melee 34 | . . . . . . 12 . . 3 . . . 19 Projectile 82 | . . . . . 6 32 3 . 16 1 4 9 11 AOE 620 | . 42 56 . 59 48 40 3 . 85 . . 21 266 Terrain Rammed . | . . . . . . . . . . . . . . Walls Destroyed . | . . . . . . . . . . . . . . Machines Disabled . | . . . . . . . . . . . . . . Actions | -11 -10 -10 -10 -9 -8 -7 -7 -7 -6 -6 -6 -5 -4 --------- Run | Yrd Mat Min Exi Min Mat Fac Low Low Fac Was Fac Fac Fac Total 8903 | 57 847 423 270 151 510 2331 367 243 1034 334 355 694 1287 Wait 866 | . 23 1 5 72 67 149 3 2 138 9 92 152 153 Move 7348 | 43 759 401 262 55 392 1978 352 241 832 312 248 475 998 Hop . | . . . . . . . . . . . . . . Pick Up 107 | 6 22 2 . 3 9 26 2 . 9 3 3 7 15 Fast Attach 20 | 1 . . 1 . . 9 . . 1 . . 3 5 Attach 74 | 6 3 3 . 4 11 6 2 . 7 1 . 8 23 Detach 5 | . . . . . 4 . . . 1 . . . . Swap 107 | . 9 4 . 8 5 27 4 . 17 5 2 14 12 Drop 81 | . 5 . 2 2 2 36 . . 6 3 3 4 18 Fire 250 | 1 26 12 . 7 20 87 4 . 20 1 6 26 40 Melee 45 | . . . . . . 13 . . 3 . 1 5 23 Ram . | . . . . . . . . . . . . . . Kick . | . . . . . . . . . . . . . . Crush . | . . . . . . . . . . . . . . Escape Stasis . | . . . . . . . . . . . . . . Rewire . | . . . . . . . . . . . . . . Trap . | . . . . . . . . . . . . . . Miscellaneous . | . . . . . . . . . . . . . . Route ------- -11/Scrapyard -10/Materials (discovered 4 exits: [*Mat x3] / [*Min]) -10/Mines (discovered 3 exits: [*Mat x2] / *Exi) -10/Exiles -9/Mines -8/Materials -7/Factory (discovered 3 exits: *Fac / [*Sto] / [*Low]) -7/Lower Caves -7/Lower Caves -6/Factory -6/Waste -6/Factory -5/Factory -4/Factory (discovered 3 exits: [*Res] / [*Upp] / Ext) History --------- Turn | Location | Event 2 | -11/Scrapyard | Met Revision 17 19 | -11/Scrapyard | Discovered new exit (range 16) 52 | -11/Scrapyard | Entered Materials 194 | -10/Materials | Discovered new exit (range 3) 311 | -10/Materials | Build established: Mutant 356 | -10/Materials | Discovered new exit (range 13) 506 | -10/Materials | Discovered new exit (range 3) 919 | -10/Materials | Discovered new exit (range 12) 934 | -10/Materials | Entered Mines 1160 | -10/Mines | Discovered new exit (range 5) 1187 | -10/Mines | Received a Mining Laser from a helpful Derelict 1272 | -10/Mines | Found the Drone Emporium 1276 | -10/Mines | Door terminal overloaded 1295 | -10/Mines | Found Prototype Device 1310 | -10/Mines | Learned 4 Materials zone layouts 1315 | -10/Mines | Discovered new exit (range 8) 1360 | -10/Mines | Deemed a non-threat by the Exiles lab entrance 1360 | -10/Mines | Discovered new exit (range 5) 1363 | -10/Mines | Entered Exiles 1363 | -10/Exiles | Accompanied by 1 ally 1387 | -10/Exiles | Met 8R-AWN 1402 | -10/Exiles | Met EX-HEX 1447 | -10/Exiles | Met EX-DEC 1471 | -10/Exiles | Learned location of Zion (-7) 1487 | -10/Exiles | Met EX-BIN 1501 | -10/Exiles | Aligned with FarCom system 1502 | -10/Exiles | Given EX-Vault access code 1523 | -10/Exiles | Opened EX-Vault 1529 | -10/Exiles | Found YOLO Cannon 1556 | -10/Exiles | Warned to stay clear of 0b10 Research branches 1622 | -10/Exiles | Discovered new exit (range 14) 1634 | -10/Exiles | Left Exiles lab with YOLO Cannon 1634 | -10/Exiles | Entered Mines 1640 | -9/Mines | Met a Derelict bent on vengeance 1770 | -9/Mines | Discovered new exit (range 14) 1801 | -9/Mines | Destroyed 9 combat bots 1801 | -9/Mines | Entered Materials 1801 | -8/Materials | Evolved 4 slots: Propulsion x1, Utility x2, Weapon x1 1802 | -8/Materials | Identified exit to Factory 1804 | -8/Materials | Identified Decoy Drone Bay 1907 | -8/Materials | Lost 3 parts (2u1w) 2389 | -8/Materials | System corruption reached 10% 2389 | -8/Materials | Entered Factory 2389 | -7/Factory | Evolved 2 slots: Propulsion x1, Utility x1 2684 | -7/Factory | Build established: Scavenger-Tank 3283 | -7/Factory | Garrison activated, responded to threat 3343 | -7/Factory | Discovered new exit (range 15) 3579 | -7/Factory | Repaired Com. Wheel 3786 | -7/Factory | Discovered new exit (range 12) 3845 | -7/Factory | Build established: Skirmisher 4789 | -7/Factory | First assault squad dispatched 4804 | -7/Factory | Found Powered Armor 5494 | -7/Factory | Discovered new exit (range 3) 5907 | -7/Factory | Entered Lower Caves 6207 | -7/Lower Caves | Build established: Tank 6247 | -7/Lower Caves | Spotted B-75 Beast 6250 | -7/Lower Caves | Destroyed B-75 Beast 6457 | -7/Lower Caves | Discovered new exit (range 8) 6496 | -7/Lower Caves | Entered another Lower Caves area 6504 | -7/Lower Caves | Encountered a Warlord checkpoint 6578 | -7/Lower Caves | Learned 4 Factory zone layouts 6865 | -7/Lower Caves | Discovered new exit (range 11) 6884 | -7/Lower Caves | Entered Factory 6884 | -6/Factory | Evolved 2 slots: Power x1, Propulsion x1 6980 | -6/Factory | Repaired Hvy. Ion Cannon? 7414 | -6/Factory | Build established: Skirmisher 7753 | -6/Factory | Discovered new exit (range 16) 7849 | -6/Factory | Garrison activated, responded to threat 8171 | -6/Factory | Sucked down chute 8171 | -6/Factory | Entered Waste 8172 | -6/Waste | Joined by Warlord forces that had cleared the area 8545 | -6/Waste | Discovered new exit (range 16) 8551 | -6/Waste | A Compactor rumbled back to life 8551 | -6/Waste | Spotted C-40 Crusher 8554 | -6/Waste | Destroyed C-40 Crusher 8649 | -6/Waste | Entered Factory 8649 | -6/Factory | Accompanied by 19 allies 8730 | -6/Factory | Lost 15 allies 9087 | -6/Factory | Discovered new exit (range 15) 9129 | -6/Factory | Entered another Factory area 9129 | -5/Factory | Accompanied by 2 allies 9129 | -5/Factory | Evolved 2 slots: Utility x2 9228 | -5/Factory | Destroyed 7 combat bots 9603 | -5/Factory | Build established: Scavenger-Gunner 9918 | -5/Factory | Repaired Imp. Heavy Treads 10065 | -5/Factory | Discovered new exit (range 5) 10072 | -5/Factory | Fabricated R-06 Scavenger? 10083 | -5/Factory | Build established: Gunner 10097 | -5/Factory | Entered another Factory area 10097 | -4/Factory | Accompanied by 1 ally 10097 | -4/Factory | Evolved 2 slots: Utility x2 10098 | -4/Factory | Identified exit to Extension 10588 | -4/Factory | Build established: Mutant 10687 | -4/Factory | Found Quantum Capacitor 11166 | -4/Factory | Found Quantum Capacitor 11400 | -4/Factory | Discovered new exit (range 3) 11450 | -4/Factory | Discovered new exit (range 10) 11671 | -4/Factory | YOLO Cannon suddenly exploded 11672 | -4/Factory | Core integrity fell below 50% 11702 | -4/Factory | Lost 5 parts (1n3u1w) 11773 | -4/Factory | Repaired Hvy. Siege Treads 11847 | -4/Factory | First assault squad dispatched 11928 | -4/Factory | Self-destructed Last Messages --------------- 11915_ U-05 Engineer lays Concrete. 11918_ Cld. Plasma Cannon destroyed. 11918_ Critical hit (Burn: +50). 11918_ U-05 Engineer lays Concrete. 11919_ Rocket Launcher destroyed. 11919_ U-05 Engineer lays Concrete. 11920_ Rocket Launcher destroyed. 11920_ U-05 Engineer lays Concrete. 11921_ Energy Well destroyed. 11921_ Neutrino Core destroyed. 11921_ Rocket Launcher destroyed. 11922_ U-05 Engineer builds a Wall. 11923_ G-67 Veteran destroyed. 11923_ K-01 Serf collects debris. 11925_ Cld. Plasma Cannon destroyed. 11926_ U-05 Engineer builds a Wall. 11927_ Cld. Plasma Cannon destroyed. 11927_ K-01 Serf collects debris. 11927_ Critical hit (Burn: +50). [Achievement: Back For More] Map ----- +----------------------------------------------------+ | # #??????????????????????????????????????????? | | #!!! # ^"??????????????????????????????????????? | | #!! !# "??????????????????????????????????????? | | #!! # ??????????????????????????????????????? | | # # "??????????????????????????????????????? | | # # """?"??????????????????????????????????? | | # + """?"??????????????????????????????????? | | # / # ??????????????????????????????????? | | # #= """ ""?????????????????????????????????? | | # " " # """ """????????????????????????????????? | | # "R" # """ """????????????????????????????????? | | # """ # ^ ????????????????????????????????? | | "###### """ """????????????????????????????????? | | """ "" #?????????????????????????????? | | """ #?????????????????????????????? | | ;?????????????????????????????? | | ####### gg ;#????????????????????????????? | | ### #" g #######?????????????????????? | | #?# # k %%[ #?????????????????????? | | " " #?# # g g*[ "" #?????????????????????? | | " " #?# + =%[ #?????????????????????? | | " " #?# #=! ]]* #?????????????????????? | | " " #?# ###%= ]]]! #?????????????????????? | | " " #?# ##; ! ]]]%[ #?????????????????????? | | " " #?# # ; =!=[! ##????????????????????? | | " " =#?# ##; %!%! @ #????????????????????? | | " " #?# ? * %%![!=!##????????????????????? | | " "????# ? g % !#?????????????????????? | | ????# ?? % # % ####?????????????????????? | | ?##????# ?? #u ?????????????????????????? | | ??????? ??? ??????????????????????????? | | ??????? ??? ??????????????????????????? | | ??????? ???# ???????????????????????????? | | ??????? ?????# ???????????????????????????? | | ????????????? ????????????????????????????? | | ?????????????? ????????????????????????????? | | ?????????????? ; ?????????????????????????????? | | ???????????????? ?????????????????????????????? | | ?????????????????? ??????????????????????????????? | | ?????????????????????????????????????????????????? | | ?????????????????????????????????????????????????? | | ?????????????????????????????????????????????????? | | ?????????????????????????????????????????????????? | | ?????????????????????????????????????????????????? | | ?????????????????????????????????????????????????? | | ?????????????????????????????????????????????????? | | ?????????????????????????????????????????????????? | | ?????????????????????????????????????????????????? | | ?????????????????????????????????????????????????? | | ?????????????????????????????????????????????????? | +----------------------------------------------------+ Best States ------------- Heat Dissipation 95 Coolant Potential 65 Energy Generation 37 Energy Capacity 900 Matter Stores 300 Matter Capacity 300 Sight Range 16 Terrain Scan Density 10 Jamming Range 16 Base Temperature (-) 150 Armor Coverage 1700 Resistance: KI 30 Resistance: TH 15 Power Shielding 66 Evasion (%) 50 Targeting Accuracy 6 Core Analysis 9 Recoil Reduction 3 Particle Charging 25 Defensive Hacking 10 Item Schematics ----------------- Rocket Launcher | -8/Materials | Scanalyzed Imp. Heavy Treads | -4/Factory | Scanalyzed Robot Schematics ------------------ None Fabricated ------------ R-06 Scavenger | x2 | -5/Factory | Preloaded Alien Tech Used ----------------- None Achievements -------------- Back For More Just Shoot The Terminal Preemptive Strike Quick And Dirty Tank We Are Legion Challenges ------------ None Game ------ Seed GhostResetStick Manual? 0 Play Time 03:58:23 Cumulative 42.6 hours Start 2025.01.17 @ 07:27:47 End 2025.01.18 @ 12:56:09 Sessions 5 Manual Loads 0 Difficulty Rogue Special Mode None Game No. 50 Rogue 47 Adventurer 0 Explorer 3 Win Type - Total 0 Types 0/0/0/0/0/0/0/0/0 Lore% 9 Gallery% 31 Achievement% 28 Wizard Run 0 Options --------- Layout 0 ASCII 0 Keyboard 0 Movement Numpad Keybinds 0 Fullscreen 0 Font 16/SmallcapsGlow Map View 88x55 Zoom Use 0% Tactical HUD 1 Map Filters NONE Filters NONE Steam 1 RUN: 3ff28e91-f84b-4ad4-848e-b2a82c5b16fc